bitfinex/quotes_ETHUSD_20250604
["timestamp","ask_amount","ask_price","bid_price","bid_amount"]
[1749069447448,4.58163556,2607.5,2607.2,14.51526]
[1749069447750,4.58163556,2607.5,2607.1,24.106089]
[1749069448355,0.05636108,2607.3,2607.1,24.106089]
[1749069448958,0.05636108,2607.3,2607.1,19.993473]
[1749069449457,4.58163556,2607.5,2607.1,19.993473]
[1749069449655,4.58163556,2607.3,2607.1,19.993473]
[1749069450021,0.05636108,2607.2,2607.0,16.479]
[1749069450217,0.05636108,2607.2,2607.0,8.271]
[1749069450218,4.58163556,2607.1,2607.0,8.271]
[1749069450550,5.13163556,2607.1,2607.0,10.016]
[1749069450730,5.13163556,2607.1,2607.0,16.477]
[1749069452720,0.05636108,2606.8,2605.7,4.58163556]
[1749069452929,0.05636108,2606.8,2605.9,40.0]
[1749069453259,0.05636108,2606.8,2606.1,0.38370897]
[1749069453454,0.05636108,2606.8,2606.2,30.0]
[1749069453952,0.05636108,2606.8,2606.4,35.773753]
[1749069454156,0.05636108,2606.8,2606.6,30.880216]
[1749069454351,0.05636108,2606.8,2606.6,20.880216]
[1749069454855,0.05636108,2606.8,2606.6,27.082216]
[1749069455057,0.05636108,2606.8,2606.6,17.082216]
[1749069456153,4.60163556,2606.9,2606.6,17.082216]
[1749069456154,0.05636108,2606.7,2606.6,17.082216]
[1749069456316,0.02,2606.9,2606.6,17.082216]
[1749069456718,0.05636108,2606.7,2606.6,17.082216]
[1749069456924,0.07636108,2606.9,2606.6,17.082216]
[1749069457127,0.07636108,2606.9,2606.6,18.167054]
[1749069457433,0.07636108,2606.9,2606.7,8.271]
[1749069457750,0.02,2606.9,2606.8,10.029082]
[1749069459052,0.02,2606.9,2606.8,10.539082]
[1749069459241,0.02,2606.9,2606.8,10.92269409]
[1749069460261,0.05636108,2607.7,2606.9,30.0]
[1749069460473,0.02,2607.9,2606.9,30.0]
[1749069460669,0.02,2607.9,2607.0,30.0]
[1749069460866,0.05636108,2607.8,2607.3,40.0]
[1749069461065,0.02,2607.9,2607.5,40.0]
[1749069461360,0.05636108,2607.8,2607.5,30.0]
[1749069461859,4.58163556,2607.7,2607.6,6.458]
[1749069462066,4.58163556,2607.7,2607.6,12.373184]
[1749069463868,4.58163556,2607.7,2607.6,8.203]
[1749069464369,4.58163556,2607.7,2607.6,10.634456]
[1749069464774,4.63799664,2607.7,2607.6,10.634456]
[1749069465575,4.63799664,2607.7,2607.6,2.431456]
[1749069465872,4.63799664,2607.7,2607.6,10.633456]
[1749069466073,0.05636108,2607.7,2607.6,10.633456]
[1749069466643,4.63799664,2607.7,2607.3,18.480953]
[1749069466857,4.63799664,2607.7,2607.6,10.546287]
[1749069467451,4.63799664,2607.7,2607.6,8.201]
[1749069467665,4.63799664,2607.7,2607.6,11.242199]
[1749069467990,4.63799664,2607.7,2607.3,12.068649]
[1749069468202,4.63799664,2607.7,2607.6,18.397714]
[1749069468203,0.05636108,2607.7,2607.6,18.397714]
[1749069468759,0.05636108,2607.7,2607.6,18.095721]
[1749069470776,0.05636108,2607.7,2607.6,9.898721]
[1749069470980,0.05636108,2607.7,2607.6,30.8317]
[1749069471146,0.05636108,2607.7,2607.3,30.0]
[1749069471347,0.05636108,2607.7,2607.5,25.566596]
[1749069471956,0.05636108,2607.7,2607.5,25.2368]
[1749069472671,4.63799664,2607.7,2607.6,10.0]
[1749069472844,4.63799664,2607.7,2607.6,6.430425]
[1749069473292,4.63799664,2607.7,2607.6,5.850656]
[1749069475877,4.63799664,2607.7,2607.4,8.196]
[1749069476179,4.63799664,2607.7,2607.5,9.262947]
[1749069476368,4.63799664,2607.7,2607.6,10.0]
[1749069476568,4.63799664,2607.7,2607.6,5.759996]
[1749069476769,1.5214,2607.6,2607.2,0.51]
[1749069476968,0.05636108,2607.4,2607.3,1.741]
[1749069477299,1.5214,2607.6,2606.8,26.531655]
[1749069477300,0.05636108,2607.1,2606.8,26.531655]
[1749069477447,0.05636108,2607.1,2607.0,14.668744]
[1749069477800,0.05636108,2607.1,2607.0,6.453]
[1749069478002,5.2549263,2607.1,2607.0,8.194]
[1749069479180,5.8049263,2607.1,2607.0,1.741]
[1749069479502,5.8049263,2607.1,2606.6,0.51]
[1749069479691,4.58163556,2606.8,2606.6,0.51]
[1749069479867,4.58163556,2606.8,2606.7,16.465]
[1749069480612,6.18223556,2606.8,2606.7,16.464]
[1749069481676,7.35609522,2606.8,2606.7,8.271]
[1749069481990,7.40499522,2606.8,2606.7,8.271]
[1749069482169,7.40499522,2606.8,2606.7,10.012]
[1749069482368,7.40499522,2606.8,2606.7,16.465]
[1749069484509,7.40499522,2606.8,2606.7,10.012]
[1749069486937,1.5186,2606.0,2605.1,0.02]
[1749069487247,1.5186,2606.0,2605.3,8.272]
[1749069487248,0.60636108,2605.4,2605.3,8.272]
[1749069487814,0.55,2605.3,2605.2,8.272]
[1749069488021,0.55,2605.3,2605.2,10.36844272]
[1749069488193,0.05636108,2605.4,2605.2,10.36844272]
[1749069488404,0.05636108,2605.4,2605.2,10.013]
[1749069488926,0.05636108,2605.4,2605.3,8.548381]
[1749069489123,0.05636108,2605.4,2605.3,8.193]
[1749069489437,0.60636108,2605.4,2605.3,1.741]
[1749069489652,2.1534,2605.3,2605.2,8.272]
[1749069489797,2.1534,2605.3,2605.2,10.014]
[1749069490309,0.07636108,2604.9,2604.3,30.0]
[1749069490821,0.07636108,2604.9,2604.4,30.0]
[1749069490997,0.07636108,2604.9,2604.3,30.0]
[1749069491415,0.07636108,2604.9,2604.4,6.453]
[1749069491617,0.07636108,2604.9,2604.5,27.74013]
[1749069491934,0.07636108,2604.9,2604.5,26.967514]
[1749069492094,0.05636108,2604.7,2604.5,26.967514]
[1749069492692,0.02,2604.9,2604.6,0.3535871]
[1749069492942,0.05636108,2604.8,2604.5,26.967514]
[1749069493732,0.05636108,2604.8,2604.5,28.071227]
[1749069493930,0.05636108,2604.8,2604.6,6.454]
[1749069494133,0.05636108,2604.8,2604.7,3.934723]
[1749069494348,0.02,2604.9,2604.8,10.0]
[1749069494553,0.02,2604.9,2604.8,16.99501092]
[1749069494716,0.02,2604.9,2604.7,18.282436]
[1749069494917,0.02,2604.9,2604.8,16.122001]
[1749069495217,0.02,2604.9,2604.7,18.437319]
[1749069495419,0.02,2604.9,2604.7,16.554855]
[1749069495729,0.02,2604.9,2604.8,12.00148839]
[1749069495936,0.02,2604.9,2604.8,11.647945]
[1749069496257,0.02,2604.9,2604.7,30.0]
[1749069496450,0.02,2604.9,2604.8,9.332908]
[1749069496639,0.02,2604.9,2604.8,9.741252]
[1749069496823,0.02,2604.9,2604.7,14.042681]
[1749069497025,0.02,2604.9,2604.8,10.680313]
[1749069497227,0.02,2604.9,2604.8,8.12191942]
[1749069497464,0.02,2604.9,2604.8,17.785366]
[1749069498314,0.02,2604.9,2604.8,18.13891558]
[1749069498527,0.02,2604.9,2604.8,18.13891574]
[1749069498736,0.02,2604.9,2604.8,18.13891542]
[1749069498930,0.02,2604.9,2604.8,33.15927075]
[1749069499141,0.02,2604.9,2604.8,20.81843775]
[1749069499357,0.02,2604.9,2604.8,20.8184492]
[1749069499521,0.02,2604.9,2604.8,20.464796]
[1749069499727,0.02,2604.9,2604.8,12.289221]
[1749069499928,0.07636108,2604.9,2604.8,16.466]
[1749069500528,0.07636108,2604.9,2604.8,10.013]
[1749069500749,0.07636108,2604.9,2604.8,16.466]
[1749069501465,0.07636108,2604.9,2604.8,8.62898699]
[1749069501624,0.07636108,2604.9,2604.8,16.466]
[1749069502161,0.07636108,2604.9,2604.8,10.013]
[1749069502162,2.25186108,2604.9,2604.8,10.013]
[1749069502463,3.4314809,2604.9,2604.8,10.013]
[1749069502755,3.4314809,2604.9,2604.8,16.82004443]
[1749069502923,3.4314809,2604.9,2604.8,16.466]
[1749069503324,0.62636108,2604.9,2604.8,16.82004252]
[1749069503670,0.62636108,2604.9,2604.8,16.466]
[1749069504019,11.7391982,2604.9,2604.8,10.36699314]
[1749069504254,11.7391982,2604.9,2604.8,16.466]
[1749069504433,12.91311802,2604.9,2604.8,16.82002922]
[1749069504629,12.91311802,2604.9,2604.8,16.466]
[1749069504843,0.05636108,2604.3,2603.2,2.18516993]
[1749069505043,0.05636108,2604.3,2603.4,30.0]
[1749069505253,0.05636108,2604.3,2604.0,14.57947539]
[1749069505434,0.05636108,2604.5,2604.2,26.45882]
[1749069505829,0.05636108,2604.5,2604.4,21.538407]
[1749069506032,0.05636108,2604.3,2604.2,28.35782]
[1749069506352,0.05636108,2604.3,2604.2,22.129711]
[1749069506864,0.05636108,2604.3,2604.2,22.48636992]
[1749069507073,0.05636108,2604.3,2604.2,22.129711]
[1749069507830,0.05636108,2604.3,2604.2,22.48636847]
[1749069508034,0.05636108,2604.3,2604.2,22.48636817]
[1749069508254,0.05636108,2604.3,2604.2,16.03336842]
[1749069508555,0.05636108,2604.3,2604.2,10.65861865]
[1749069508761,0.05636108,2604.3,2604.2,10.302045]
[1749069509925,0.05636108,2604.3,2604.2,10.65862004]
[1749069510118,0.05636108,2604.3,2604.2,10.302045]
[1749069510767,0.05636108,2604.5,2604.3,22.99667]
[1749069511060,2.1385,2604.9,2604.2,6.453]
[1749069511061,0.05636108,2604.8,2604.5,27.933887]
[1749069511261,0.05636108,2604.8,2604.1,1.738]
[1749069511262,0.05636108,2604.8,2604.6,15.08755905]
[1749069511578,6.18028978,2604.7,2604.6,14.731]
[1749069511779,6.18028978,2604.7,2604.6,16.47]
[1749069512152,0.05636108,2604.8,2604.6,27.904731]
[1749069512473,0.05636108,2604.8,2604.6,16.47]
[1749069512781,5.13948978,2604.7,2604.6,10.017]
[1749069513182,6.80348978,2604.7,2604.6,10.017]
[1749069513479,6.80348978,2604.7,2604.6,16.469]
[1749069514552,6.80348978,2604.7,2604.6,10.017]
[1749069514752,2.214,2604.7,2604.6,16.469]
[1749069514956,7.0958244,2604.7,2604.6,16.469]
[1749069516871,0.05636108,2604.8,2604.6,16.469]
[1749069517190,0.05636108,2604.8,2604.7,5.472976]
[1749069517569,0.02,2604.9,2604.8,10.0]
[1749069517871,0.07636108,2604.9,2604.8,10.0]
[1749069518070,6.27885086,2604.9,2604.8,8.191]
[1749069518268,4.66585086,2604.9,2604.8,8.191]
[1749069519062,4.66585086,2604.9,2604.8,1.739]
[1749069519272,4.66585086,2604.9,2604.8,8.191]
[1749069520054,5.21585086,2604.9,2604.8,10.017]
[1749069520291,5.21585086,2604.9,2604.8,14.434737]
[1749069520292,0.07636108,2604.9,2604.8,14.434737]
[1749069520468,0.07636108,2604.9,2604.8,13.636896]
[1749069521273,0.07636108,2604.9,2604.8,20.087896]
[1749069521994,0.07636108,2604.9,2604.8,13.636896]
[1749069522293,0.07636108,2604.9,2604.8,7.070896]
[1749069522664,0.07636108,2604.9,2604.5,2.728609]
[1749069522665,0.05636108,2604.6,2604.5,2.728609]
[1749069522865,2.0905,2604.5,2603.4,30.0]
[1749069523066,2.0905,2604.5,2603.5,36.451]
[1749069523067,4.58948978,2604.3,2603.5,36.451]
[1749069523271,4.58948978,2604.3,2603.7,20.407249]
[1749069523471,4.58948978,2604.3,2603.7,12.369503]
[1749069523894,4.58948978,2604.3,2603.8,0.38405316]
[1749069524211,0.05636108,2604.4,2604.2,30.0]
[1749069524366,0.57,2604.9,2604.4,30.0]
[1749069524557,0.05636108,2604.6,2604.4,30.0]
[1749069526296,0.02,2604.9,2604.4,30.0]
[1749069526499,0.02,2604.9,2604.4,21.93461208]
[1749069526660,0.02,2604.9,2604.4,30.0]
[1749069527703,4.60948978,2604.9,2604.7,10.0]
[1749069527859,4.60948978,2604.9,2604.8,6.45]
[1749069529086,4.60948978,2604.9,2604.8,9.042834]
[1749069529296,0.02,2604.9,2604.8,9.042834]
[1749069531463,4.58948978,2605.4,2604.9,25.0141]
[1749069531664,4.58948978,2605.6,2604.9,28.067701]
[1749069533099,4.58948978,2605.0,2604.5,8.278]
[1749069533269,4.58948978,2604.8,2604.7,10.0]
[1749069533602,4.58948978,2604.9,2604.7,6.449]
[1749069535312,11.37104445,2605.1,2604.7,6.449]
[1749069535473,0.55,2605.0,2604.7,6.449]
[1749069535919,0.55,2605.0,2604.5,8.278]
[1749069536079,1.74210445,2605.0,2604.8,1.735]
[1749069537818,1.19210445,2605.0,2604.8,1.735]
[1749069538033,1.6527,2605.5,2604.9,12.665732]
[1749069538309,11.20038445,2605.5,2604.9,12.665732]
[1749069539275,11.20038445,2605.5,2604.9,11.622224]
[1749069539620,2.0795,2605.1,2605.0,6.448]
[1749069539787,3.24221844,2605.1,2605.0,6.448]
[1749069539992,1.5295,2605.3,2605.0,6.448]
[1749069541304,1.5295,2605.8,2605.1,26.556078]
[1749069541504,0.55,2605.7,2605.1,26.556078]
[1749069541700,1.5295,2605.8,2605.1,26.556078]
[1749069541906,1.10971844,2605.7,2605.1,24.05733]
[1749069542312,1.10971844,2605.7,2605.1,12.512915]
[1749069542648,9.54768445,2605.3,2605.2,8.182]
[1749069543218,9.54768445,2605.3,2605.2,10.013]
[1749069544487,9.54768445,2605.3,2605.2,16.46]
[1749069546106,0.55,2605.4,2605.2,16.46]
[1749069546417,9.54768445,2605.6,2605.4,10.0]
[1749069546617,0.55,2605.5,2605.3,6.986079]
[1749069546819,0.55,2605.5,2605.4,8.181]
[1749069549390,1.5041,2605.4,2605.2,8.278]
[1749069549592,2.0541,2605.4,2605.3,8.181]
[1749069550321,2.0541,2605.4,2605.3,8.18]
[1749069551018,11.60178445,2605.4,2605.3,1.735]
[1749069551588,2.0541,2605.4,2605.3,1.735]
[1749069551792,11.60178445,2605.4,2605.3,1.735]
[1749069555505,10.09768445,2605.4,2605.3,1.735]
[1749069555707,1.55976845,2605.4,2605.3,1.735]
[1749069555924,0.55,2605.4,2605.3,1.735]
[1749069556138,2.0506,2605.4,2605.3,1.735]
[1749069558181,0.02,2604.9,2604.8,8.278]
[1749069558457,0.02,2604.9,2604.8,15.264754]
[1749069559245,0.02,2604.9,2604.8,21.709754]
[1749069560853,0.02,2604.9,2604.8,21.708754]
[1749069563847,0.02,2604.9,2604.8,15.264754]
[1749069564048,0.02,2604.9,2604.8,21.707754]
[1749069565776,0.02,2604.9,2604.8,20.158511]
[1749069566082,0.02,2604.9,2604.8,1.732]
[1749069566578,0.02,2604.9,2604.8,31.732]
[1749069567239,9.54513548,2605.8,2604.9,30.0]
[1749069567471,9.54513548,2605.8,2605.1,30.0]
[1749069567634,9.54513548,2605.8,2605.3,40.0]
[1749069567950,9.54513548,2605.8,2605.5,5.189102]
[1749069568160,9.54513548,2605.8,2605.6,6.442]
[1749069574701,10.50164903,2605.8,2605.6,6.442]
[1749069576219,10.50164903,2605.8,2605.4,1.732]
[1749069576220,1.655,2605.6,2605.4,1.732]
[1749069576417,10.09513548,2605.5,2605.1,6.324869]
[1749069576615,10.09513548,2605.5,2605.2,8.172]
[1749069577140,9.54513548,2605.5,2605.2,8.172]
[1749069577365,1.6527,2605.8,2605.4,5.195385]
[1749069577511,0.57,2605.9,2605.5,10.008]
[1749069577858,0.57,2605.9,2605.6,10.008]
[1749069578023,0.57,2605.9,2605.7,10.008]
[1749069578530,0.57,2605.9,2605.8,6.44]
[1749069578729,1.74678355,2605.9,2605.8,6.44]
[1749069579308,6.33444612,2605.9,2605.8,6.44]
[1749069580654,5.15766257,2605.9,2605.8,6.44]
[1749069583357,5.15766257,2605.9,2605.8,6.438]
[1749069585948,2.0742,2605.8,2605.7,8.276]
[1749069586145,0.55,2605.4,2605.1,8.276]
[1749069586349,0.2,2604.5,2603.4,30.0]
[1749069586561,0.2,2604.5,2603.6,30.0]
[1749069586868,0.2,2604.5,2603.8,30.0]
[1749069587152,0.2,2604.5,2603.8,30.36041577]
[1749069587354,0.2,2604.5,2603.9,30.0]
[1749069587576,0.2,2604.5,2604.0,14.713]
[1749069587929,0.2,2604.5,2604.1,30.0]
[1749069588350,4.58766257,2604.3,2604.2,1.732]
[1749069588679,4.58766257,2604.3,2604.1,3.699]
[1749069588680,0.2,2604.2,2604.1,3.699]
[1749069588961,0.2,2604.2,2604.1,11.869]
[1749069589120,0.2,2604.2,2604.1,10.769121]
[1749069589323,0.2,2604.2,2604.1,1.732]
[1749069589520,0.2,2604.2,2604.1,8.17]
[1749069590237,0.2,2604.2,2604.1,12.283409]
[1749069590439,0.2,2604.2,2604.1,10.458782]
[1749069590928,0.2,2604.2,2604.1,10.457782]
[1749069593669,0.2,2604.2,2604.1,10.006]
[1749069593851,2.299,2604.2,2604.1,10.006]
[1749069594834,2.299,2604.2,2604.1,16.443]
[1749069596374,0.2,2603.1,2602.9,8.278]
[1749069596671,0.2,2603.0,2602.9,16.505257]
[1749069596989,0.2,2603.0,2602.9,18.49075]
[1749069597431,0.2,2603.0,2602.9,16.445]
[1749069597769,0.2,2603.0,2602.9,20.233099]
[1749069598158,0.2,2603.2,2602.9,20.233099]
[1749069598333,0.2,2603.2,2603.0,26.030003]
[1749069599639,0.2,2603.2,2603.0,14.861674]
[1749069600268,0.2,2603.2,2603.1,20.483039]
[1749069602293,0.2,2603.2,2603.1,13.29903911]
[1749069603567,0.2,2603.2,2603.1,6.438]
[1749069603752,0.2,2603.2,2603.1,16.987964]
[1749069604554,0.2,2603.2,2603.1,15.426062]
[1749069604780,0.2,2603.2,2603.1,2.08535701]
[1749069604986,11.89191952,2603.2,2603.1,1.729]
[1749069605292,13.08111147,2603.2,2603.1,8.168]
[1749069605897,13.08111147,2603.2,2603.1,1.729]
[1749069606058,13.08111147,2603.2,2603.1,8.168]
[1749069606387,13.08111147,2603.2,2603.1,1.729]
[1749069606590,13.08111147,2603.2,2603.1,8.168]
[1749069607088,13.08111147,2603.2,2603.1,8.52442738]
[1749069607285,13.08111147,2603.2,2603.1,8.168]
[1749069608188,11.89191952,2603.2,2603.1,8.168]
[1749069608967,11.89191952,2603.2,2603.1,2.08541774]
[1749069609299,11.89191952,2603.2,2603.1,8.168]
[1749069610392,11.89191952,2603.2,2603.1,1.729]
[1749069610570,11.89191952,2603.2,2603.1,8.168]
[1749069610888,13.08111147,2603.2,2603.1,8.168]
[1749069611788,13.08111147,2603.2,2603.1,1.729]
[1749069612158,13.08111147,2603.2,2603.1,8.168]
[1749069612370,13.08111147,2603.2,2603.1,1.729]
[1749069612570,13.08111147,2603.2,2603.1,8.168]
[1749069612788,13.08111147,2603.2,2603.1,8.52505214]
[1749069613371,13.08111147,2603.2,2603.1,8.168]
[1749069613573,0.55,2603.1,2602.9,8.278]
[1749069613775,0.2,2603.0,2602.9,8.278]
[1749069613974,0.2,2603.0,2602.9,16.447]
[1749069614776,0.2,2603.0,2602.9,16.80405409]
[1749069615096,3.37038456,2603.0,2602.9,16.447]
[1749069615275,12.92230408,2603.0,2602.9,16.447]
[1749069615460,12.92230408,2603.0,2602.9,16.80409098]
[1749069615654,12.92230408,2603.0,2602.9,16.447]
[1749069615859,12.92230408,2603.0,2602.9,16.8040933]
[1749069616056,12.92230408,2603.0,2602.9,16.80466473]
[1749069616261,12.92230408,2603.0,2602.9,8.278]
[1749069616594,12.92230408,2603.0,2602.9,16.447]
[1749069617191,2.3955,2603.0,2602.9,16.447]
[1749069617513,0.55,2603.0,2602.9,16.80464396]
[1749069617681,0.75,2603.0,2602.9,16.80464396]
[1749069617876,0.55,2603.0,2602.9,17.16227935]
[1749069618120,0.55,2603.0,2602.9,16.80464396]
[1749069618420,0.75,2603.0,2602.9,16.80464396]
[1749069618585,0.2,2603.2,2602.9,30.91233696]
[1749069618790,0.2,2603.0,2602.9,20.24689796]
[1749069618985,0.2,2603.0,2602.9,19.78098196]
[1749069619200,0.2,2603.0,2602.9,20.13874682]
[1749069619403,0.2,2603.0,2602.9,19.78098196]
[1749069620009,0.2,2603.0,2602.9,19.76229796]
[1749069620716,0.2,2603.2,2603.0,14.080354]
[1749069620878,0.2,2603.2,2603.0,7.692264]
[1749069621078,0.2,2603.2,2602.9,16.80464396]
[1749069621495,0.2,2603.2,2603.0,11.88519953]
[1749069621696,0.2,2603.2,2603.1,10.0]
[1749069622071,0.2,2603.2,2603.1,0.3574917]
[1749069622271,0.2,2603.2,2603.0,13.42671]
[1749069622471,0.2,2603.0,2602.9,11.17012496]
[1749069622718,0.2,2603.0,2602.9,19.33512496]
[1749069624497,0.2,2603.0,2602.9,19.69239845]
[1749069624814,0.2,2603.0,2602.9,19.33512496]
[1749069624976,0.2,2603.0,2602.9,19.69239845]
[1749069625179,0.2,2603.0,2602.9,19.33512496]
[1749069625387,0.55,2603.5,2603.0,12.460374]
[1749069625593,0.55,2603.5,2603.1,10.0]
[1749069625876,0.55,2603.5,2602.9,16.80064396]
[1749069626103,0.55,2603.5,2603.1,8.716229]
[1749069626311,0.55,2603.5,2603.2,0.35950286]
[1749069626511,0.55,2603.5,2603.3,6.438]
[1749069626814,0.55,2603.5,2603.4,0.35950372]
[1749069627021,0.55,2603.5,2603.3,6.438]
[1749069628818,4.59520057,2603.4,2602.9,10.36264396]
[1749069628994,4.59520057,2603.4,2603.0,6.437]
[1749069630715,5.26208063,2603.4,2602.9,10.36264396]
[1749069630921,5.26208063,2603.4,2603.0,6.437]
[1749069631306,4.59520057,2603.4,2603.1,10.0]
[1749069631528,1.5236,2603.6,2603.2,10.0]
[1749069631725,1.5236,2603.6,2603.2,7.848487]
[1749069631887,1.5236,2603.6,2603.2,6.291856]
[1749069632507,1.5236,2603.6,2603.1,10.0]
[1749069632816,6.11880057,2603.6,2603.1,14.432158]
[1749069633146,6.11880057,2603.6,2603.1,10.0]
[1749069633319,6.11880057,2603.6,2603.2,10.0]
[1749069633659,6.11880057,2603.6,2603.2,4.432158]
[1749069634028,1.6355,2603.9,2603.2,4.432158]
[1749069635252,0.55,2603.8,2603.2,4.432158]
[1749069635546,0.55,2603.4,2603.3,1.727]
[1749069635756,0.55,2603.4,2603.3,8.163]
[1749069635903,1.6355,2603.6,2603.3,8.163]
[1749069636100,0.55,2603.5,2603.3,8.163]
[1749069637362,5.14520057,2603.5,2603.4,6.436]
[1749069640915,1.6355,2603.6,2603.4,14.719]
[1749069641132,0.55,2603.7,2603.4,14.719]
[1749069642745,0.55,2603.9,2603.4,14.719]
[1749069645124,0.55,2603.7,2603.4,14.719]
[1749069645918,0.55,2603.7,2603.5,6.434]
[1749069647119,0.55,2603.8,2603.5,6.434]
[1749069647323,1.5775,2604.5,2603.5,30.0]
[1749069647540,1.5775,2604.5,2603.7,30.0]
[1749069647740,0.55,2604.4,2603.7,30.0]
[1749069647934,6.17270057,2604.7,2603.7,30.0]
[1749069648138,1.5775,2604.7,2603.8,4.59520057]
[1749069648441,1.5775,2604.7,2603.9,30.0]
[1749069648650,1.6233,2604.9,2603.9,30.0]
[1749069648970,0.55,2604.8,2603.9,30.0]
[1749069649262,0.55,2604.8,2603.8,30.0]
[1749069649623,6.21850057,2604.9,2603.8,30.0]
[1749069649854,6.21850057,2604.9,2603.9,30.0]
[1749069650057,0.55,2604.8,2604.0,30.0]
[1749069650357,0.55,2604.8,2604.1,22.522167]
[1749069650561,0.55,2604.8,2603.8,4.59520057]
[1749069650562,0.55,2604.8,2604.3,2.925878]
[1749069650720,0.55,2604.8,2604.4,10.0]
[1749069650922,0.55,2604.8,2604.4,2.293282]
[1749069651129,0.55,2604.8,2604.3,10.0]
[1749069651328,0.55,2604.8,2604.3,12.294382]
[1749069651527,0.55,2604.8,2604.4,2.294282]
[1749069652968,0.02,2604.9,2604.4,2.294282]
[1749069653433,0.02,2604.9,2604.3,10.0]
[1749069653434,0.02,2604.9,2604.3,3.49796715]
[1749069653630,0.02,2604.9,2604.2,12.75520057]
[1749069653871,0.02,2604.9,2604.6,10.0]
[1749069654167,0.02,2604.9,2604.7,8.281]
[1749069654569,0.02,2604.9,2604.8,8.155]
[1749069654730,1.0014,2604.8,2604.7,8.281]
[1749069655070,1.0014,2604.8,2604.7,10.005]
[1749069655877,1.0014,2604.8,2604.7,16.435]
[1749069656566,1.0014,2604.8,2604.7,10.005]
[1749069656865,1.0014,2604.8,2604.7,16.435]
[1749069657273,1.0014,2604.8,2604.7,10.005]
[1749069657478,1.0014,2604.8,2604.7,16.435]
[1749069658577,1.77984006,2604.8,2604.7,10.005]
[1749069658754,1.77984006,2604.8,2604.7,16.435]
[1749069659281,1.0014,2604.8,2604.7,16.435]
[1749069659874,1.5514,2604.8,2604.7,10.005]
[1749069660175,1.5514,2604.8,2604.7,16.434]
[1749069660480,3.0585,2604.8,2604.7,10.005]
[1749069660648,3.0585,2604.8,2604.7,16.434]
[1749069660849,4.28539011,2604.8,2604.7,16.434]
[1749069661577,4.28539011,2604.8,2604.7,10.005]
[1749069664783,8.88059068,2604.8,2604.7,10.005]
[1749069666249,3.73539011,2604.8,2604.7,10.005]
[1749069666490,2.5085,2604.8,2604.7,10.005]
[1749069666851,3.0585,2604.8,2604.7,10.005]
[1749069667852,1.5514,2604.8,2604.7,10.005]
[1749069669064,1.0014,2604.8,2604.7,10.005]
[1749069672718,1.0014,2604.8,2604.7,25.29946]
[1749069674176,1.0014,2604.8,2604.7,13.356091]
[1749069674575,1.0014,2604.8,2604.7,12.723892]
[1749069678596,1.0014,2604.8,2604.7,17.31909257]
[1749069678796,0.91892948,2604.8,2604.7,17.31909257]
[1749069678985,0.02,2604.9,2604.7,17.6494737]
[1749069679187,0.02,2604.9,2604.8,29.10367976]
[1749069679450,8.056e-05,2604.9,2604.8,28.77329863]
[1749069680022,8.056e-05,2604.9,2604.8,33.3684992]
[1749069680234,8.056e-05,2604.9,2604.8,28.77329863]
[1749069681186,8.056e-05,2604.9,2604.8,38.31077334]
[1749069682187,8.056e-05,2604.9,2604.8,38.64115447]
[1749069682388,8.056e-05,2604.9,2604.8,39.51109875]
[1749069682630,0.02,2605.9,2605.7,28.389392]
[1749069682825,0.02,2605.9,2605.8,36.532392]
[1749069683206,0.02,2605.9,2605.8,36.9161513]
[1749069684023,0.02,2605.9,2605.8,28.7731513]
[1749069684208,0.02,2605.9,2605.8,36.9161513]
[1749069684535,0.02,2605.9,2605.8,30.109392]
[1749069684718,0.02,2605.9,2605.8,36.532392]
[1749069685467,0.02,2605.9,2605.8,30.109392]
[1749069685610,0.02,2605.9,2605.8,12.293552]
[1749069685794,0.02,2605.9,2605.8,1.72]
[1749069686195,0.02,2605.9,2605.8,25.95884]
[1749069687131,0.02,2605.9,2605.8,32.38084]
[1749069688092,0.02,2605.9,2605.8,25.95884]
[1749069688290,0.02,2605.9,2605.8,8.351889]
[1749069688493,0.02,2605.9,2605.8,12.5451]
[1749069688933,0.02,2605.9,2605.8,8.141]
[1749069689155,0.02,2605.9,2605.8,11.346949]
[1749069689800,0.02,2605.9,2605.8,4.310949]
[1749069689997,0.02,2605.9,2605.8,10.730949]
[1749069691526,0.02,2605.9,2605.8,1.72]
[1749069691895,0.02,2605.9,2604.9,21.647891]
[1749069692096,0.02,2605.9,2605.1,21.647891]
[1749069692305,1.5876,2605.8,2605.1,8.041777]
[1749069692715,1.5876,2605.8,2605.2,6.42]
[1749069692942,1.5876,2605.8,2605.3,14.978084]
[1749069693156,1.5876,2605.8,2605.3,14.953084]
[1749069693461,1.5876,2605.8,2605.4,20.978402]
[1749069693666,1.5876,2605.8,2605.3,18.61889]
[1749069694350,1.5876,2605.8,2605.4,6.42]
[1749069694510,1.5876,2605.8,2605.5,14.994566]
[1749069694847,0.02,2605.9,2605.6,1.72]
[1749069695550,0.02,2605.9,2605.7,6.42]
[1749069697330,0.02,2605.9,2605.8,10.0]
[1749069697531,0.02,2605.9,2605.7,6.42]
[1749069697933,0.02,2605.9,2605.8,10.0]
[1749069698152,0.55,2605.7,2605.6,1.72]